fUST/lending_fUST_20251110
["ID","MTS","AMOUNT","RATE_DAILY","PERIOD"]
[393513871,1762742702482,500.0,0.00037016,60]
[393513872,1762742702731,500.0,0.00037016,60]
[393513873,1762742703009,500.0,0.00037016,60]
[393513874,1762742703146,1032.0,0.00032877,120]
[393513875,1762742703247,177.82184628,0.00037016,60]
[393513876,1762742714308,1752.87170061,0.00037016,120]
[393513877,1762742716624,519.92941589,0.00037016,60]
[393513878,1762742724834,500.0,0.00037016,60]
[393513879,1762742724878,506.07599975,0.00037016,60]
[393513880,1762742725077,500.0,0.00037016,60]
[393513881,1762742725306,500.0,0.00037016,60]
[393513882,1762742725588,500.0,0.00037016,60]
[393513883,1762742725836,500.0,0.00037016,60]
[393513884,1762742726084,518.74496217,0.00037016,60]
[393513885,1762742727803,500.0,0.00037016,60]
[393513886,1762742728034,515.02462257,0.00037016,60]
[393513887,1762742729808,500.0,0.00037016,60]
[393513888,1762742730044,500.0,0.00037016,60]
[393513889,1762742730284,500.0,0.00037016,60]
[393513890,1762742730523,500.0,0.00037016,60]
[393513891,1762742730765,253.17697735,0.00037016,60]
[393513892,1762742731420,500.0,0.00037016,60]
[393513893,1762742731656,524.0806293,0.00037016,60]
[393513894,1762742738002,500.0,0.00037016,60]
[393513895,1762742738256,500.0,0.00037016,60]
[393513896,1762742738293,500.0,0.00037016,60]
[393513897,1762742738657,500.0,0.00037016,60]
[393513898,1762742738692,500.0,0.00037016,60]
[393513899,1762742738793,500.0,0.00037016,60]
[393513900,1762742738826,535.52900135,0.00037016,60]
[393513901,1762742739032,500.0,0.00037016,60]
[393513902,1762742739298,500.0,0.00037016,60]
[393513903,1762742739526,500.0,0.00037016,60]
[393513904,1762742739768,183.48701643,0.00037016,60]
[393513905,1762742741525,500.0,0.00037016,60]
[393513906,1762742741758,500.0,0.00037016,60]
[393513907,1762742742094,550.07098638,0.00037016,60]
[393513908,1762742744895,500.0,0.00037016,60]
[393513909,1762742745148,640.06303049,0.00037016,60]
[393513910,1762742746305,509.09195403,0.00037016,60]
[393513911,1762742750018,528.99478973,0.00037016,60]
[393513912,1762742754055,610.0508187,0.00037016,60]
[393513913,1762742756580,494.29238078,0.00037016,60]
[393513914,1762742757147,500.0,0.00037016,60]
[393513915,1762742757283,325.89060958,0.00037016,60]
[393513916,1762742757393,500.0,0.00037016,60]
[393513917,1762742757512,500.0,0.00037016,60]
[393513918,1762742757731,523.14582051,0.00037016,60]
[393513919,1762742758217,579.81013852,0.00037016,60]
[393513920,1762742759082,500.0,0.00037016,60]
[393513921,1762742759218,500.0,0.00037016,60]
[393513922,1762742759460,500.0,0.00037016,60]
[393513923,1762742759690,500.0,0.00037016,60]
[393513924,1762742760019,500.0,0.00037016,60]
[393513925,1762742760261,500.0,0.00037016,60]
[393513926,1762742760596,906.4778728,0.00032877,120]
[393513927,1762742764392,500.0,0.00037016,60]
[393513928,1762742764639,630.95697861,0.00037016,60]
[393513929,1762742765256,500.0,0.00037016,60]
[393513930,1762742765292,343.8206791,0.00037016,60]
[393513931,1762742765484,500.0,0.00037016,60]
[393513932,1762742765889,538.10049231,0.00037016,60]
[393513933,1762742766369,509.18020737,0.00037016,60]
[393513934,1762742767105,512.88163904,0.00037016,60]
[393513935,1762742768149,592.67094149,0.00037016,60]
[393513936,1762742771812,375.28922213,0.00037016,60]
[393513937,1762742773559,500.0,0.00037016,60]
[393513938,1762742773793,500.0,0.00037016,60]
[393513939,1762742774035,500.0,0.00037016,60]
[393513940,1762742774279,500.0,0.00037016,60]
[393513941,1762742774553,500.0,0.00037016,60]
[393513942,1762742774785,500.0,0.00037016,60]
[393513943,1762742775251,500.0,0.00037016,60]
[393513944,1762742775489,500.0,0.00037016,60]
[393513945,1762742775734,500.0,0.00037016,60]
[393513946,1762742775969,500.0,0.00037016,60]
[393513947,1762742776211,621.4607386,0.00037016,60]
[393513948,1762742778572,500.0,0.00037016,60]
[393513949,1762742778793,500.0,0.00037016,60]
[393513950,1762742779028,224.39561124,0.00037016,60]
[393513951,1762742779577,500.0,0.00037016,60]
[393513952,1762742779713,500.0,0.00037016,60]
[393513953,1762742779947,500.0,0.00037016,60]
[393513954,1762742780198,500.0,0.00037016,60]
[393513955,1762742780441,500.0,0.00037016,60]
[393513956,1762742780677,500.0,0.00037016,60]
[393513957,1762742780902,500.0,0.00037016,60]
[393513958,1762742781152,500.0,0.00037016,60]
[393513959,1762742781380,255.23956291,0.00037016,60]
[393513960,1762742786269,500.0,0.00037016,60]
[393513961,1762742786508,583.26041002,0.00037016,60]
[393513962,1762742789851,514.75073206,0.00037016,60]
[393513963,1762742795363,500.0,0.00037016,60]
[393513964,1762742795632,513.42231088,0.00037016,60]
[393513965,1762742796178,508.70237518,0.00037016,60]
[393513966,1762742797343,515.05714958,0.00037016,60]
[393513967,1762742802576,513.36278748,0.00037016,60]
[393513968,1762742805041,500.0,0.00037016,60]
[393513969,1762742805370,520.31541702,0.00037016,60]
[393513970,1762742810111,509.85145155,0.00037016,60]
[393513971,1762742811198,512.40340605,0.00037016,60]
[393513972,1762742811494,500.0,0.00037016,60]
[393513973,1762742811737,506.17720501,0.00037016,60]
[393513974,1762742811768,513.18301367,0.00037016,60]
[393513975,1762742812899,504.9941289,0.00037016,60]
[393513976,1762742813590,504.06535823,0.00037016,60]
[393513977,1762742813839,583.60868668,0.00037016,60]
[393513978,1762742815277,510.04020497,0.00037016,60]
[393513979,1762742815474,191.89643695,0.000328,120]
[393513980,1762742822448,500.0,0.00037016,60]
[393513981,1762742822674,509.99671759,0.00037016,60]
[393513982,1762742824391,500.0,0.00037016,60]
[393513983,1762742825012,535.27888452,0.00037016,60]
[393513984,1762742825193,512.31726905,0.00037016,60]
[393513985,1762742828806,174.71690171,0.000328,120]
[393513986,1762742830157,193.11847907,0.000328,120]
[393513987,1762742837635,500.0,0.00037016,60]
[393513988,1762742837864,530.05190326,0.00037016,60]
[393513989,1762742838885,192.21706178,0.000328,120]
[393513990,1762742839035,185.54069276,0.000328,120]
[393513991,1762742839747,207.29762897,0.000328,120]
[393513992,1762742841195,510.13068523,0.00037016,60]
[393513993,1762742841928,500.0,0.00037016,60]
[393513994,1762742842573,505.58611053,0.00037016,60]
[393513995,1762742846562,530.39877406,0.00037016,60]
[393513996,1762742846788,509.12613637,0.00037016,60]
[393513997,1762742848281,500.0,0.00037016,60]
[393513998,1762742848522,512.44791798,0.00037016,60]
[393513999,1762742850012,500.0,0.00037016,60]
[393514000,1762742853573,500.0,0.00037016,60]
[393514001,1762742853826,523.26596736,0.00037016,60]
[393514002,1762742858148,505.7154221,0.00037016,60]
[393514003,1762742859967,500.0,0.00037016,60]
[393514004,1762742860208,519.92542715,0.00037016,60]
[393514005,1762742862706,504.09710884,0.00037016,60]
[393514006,1762742864902,520.14595579,0.00037016,60]
[393514007,1762742868377,506.97755118,0.00037016,60]
[393514008,1762742869091,500.0,0.00037016,60]
[393514009,1762742869410,500.0,0.00037016,60]
[393514010,1762742869672,500.0,0.00037016,60]
[393514011,1762742869932,500.0,0.00037016,60]
[393514012,1762742870179,572.54479632,0.00037016,60]
[393514013,1762742870406,500.0,0.00037016,60]
[393514014,1762742870638,500.0,0.00037016,60]
[393514015,1762742870722,500.0,0.00037016,60]
[393514016,1762742870859,320.91273879,0.00037016,60]
[393514017,1762742870957,516.26579403,0.00037016,60]
[393514018,1762742872171,508.33900854,0.00037016,60]
[393514019,1762742875287,522.5643341,0.00037016,60]
[393514020,1762742876977,500.0,0.00037016,60]
[393514021,1762742877203,523.5960874,0.00037016,60]
[393514022,1762742878896,500.0,0.00037016,60]
[393514023,1762742879129,586.23918718,0.00037016,60]
[393514024,1762742882102,500.0,0.00037016,60]
[393514025,1762742882435,536.20586276,0.00037016,60]
[393514026,1762742886708,500.0,0.00037016,60]
[393514027,1762742886966,641.80145881,0.00037016,60]
[393514028,1762742889023,513.94714049,0.00037016,60]
[393514029,1762742890766,508.16418155,0.00037016,60]
[393514030,1762742893150,500.0,0.00037016,60]
[393514031,1762742893366,590.65266939,0.000328,120]
[393514032,1762742893396,519.97718528,0.00037016,60]
[393514033,1762742893950,194.87936567,0.000328,120]
[393514034,1762742894073,500.0,0.00037016,60]
[393514035,1762742894300,524.85825078,0.00037016,60]
[393514036,1762742901367,509.30901831,0.00037016,60]
[393514037,1762742903162,500.0,0.00037016,60]
[393514038,1762742903395,514.7445665,0.00037016,60]
[393514039,1762742906780,311.1476519,0.00037016,60]
[393514040,1762742907569,508.90907244,0.00037016,60]
[393514041,1762742914916,500.0,0.00037016,60]
[393514042,1762742915170,528.83482116,0.00037016,60]
[393514043,1762742918683,512.29853573,0.00037016,60]
[393514044,1762742923617,500.0,0.00037016,60]
[393514045,1762742923850,510.39363457,0.00037016,60]
[393514046,1762742924399,500.0,0.00037016,60]
[393514047,1762742924620,609.35886175,0.00037016,60]
[393514048,1762742929475,512.65367627,0.00037016,60]
[393514049,1762742931112,507.36533983,0.00037016,60]
[393514050,1762742931273,338.39425663,0.00037016,60]
[393514051,1762742932791,511.21700145,0.00037016,60]
[393514052,1762742933029,511.97609939,0.00037016,60]
[393514053,1762742937277,500.0,0.00037016,60]
[393514054,1762742937518,295.07563401,0.00037016,60]
[393514055,1762742944784,500.0,0.00037016,60]
[393514056,1762742945031,521.57338917,0.00037016,60]
[393514057,1762742947907,500.0,0.00037016,60]
[393514058,1762742948172,500.0,0.00037016,60]
[393514059,1762742948429,500.0,0.00037016,60]
[393514060,1762742948661,500.0,0.00037016,60]
[393514061,1762742948929,500.0,0.00037016,60]
[393514062,1762742949170,500.0,0.00037016,60]
[393514063,1762742949422,500.0,0.00037016,60]
[393514064,1762742949687,500.0,0.00037016,60]
[393514065,1762742949988,610.22986619,0.00037016,60]
[393514066,1762742950305,500.0,0.00037016,60]
[393514067,1762742950557,500.0,0.00037016,60]
[393514068,1762742950826,538.54299709,0.00037016,60]
[393514069,1762742951575,512.07474311,0.00037016,60]
[393514070,1762742957764,569.85481159,0.00037016,60]
[393514071,1762742961068,438.46204153,0.00037016,60]
[393514072,1762742961348,274.75365497,0.000328,120]
[393514073,1762742963266,515.17192942,0.00037016,60]
[393514074,1762742964993,517.7940308,0.00037016,60]
[393514075,1762742965472,500.0,0.00037016,60]
[393514076,1762742965696,515.9010849,0.00037016,60]
[393514077,1762742966853,500.0,0.00037016,60]
[393514078,1762742967239,528.09716393,0.00037016,60]
[393514079,1762742968995,500.0,0.00037016,60]
[393514080,1762742969285,516.97802457,0.00037016,60]
[393514081,1762742970388,308.63413523,0.00037016,60]
[393514082,1762742973009,500.0,0.00037016,60]
[393514096,1762742973405,509.13441557,0.00037016,60]
[393514097,1762742977446,504.69130515,0.00037016,60]
[393514098,1762742979259,500.0,0.00037016,60]
[393514099,1762742979493,537.28911425,0.00037016,60]
[393514100,1762742993790,500.0,0.00037016,60]
[393514101,1762742994036,511.9845081,0.00037016,60]
[393514102,1762743007664,518.40882133,0.00037016,60]
[393514103,1762743007698,500.0,0.00037016,60]
[393514104,1762743007891,500.0,0.00037016,60]
[393514105,1762743008135,500.0,0.00037016,60]
[393514106,1762743008371,178.79049907,0.00037016,60]
[393514107,1762743009282,500.0,0.00037016,60]
[393514108,1762743010825,500.0,0.00037016,60]
[393514109,1762743011060,500.0,0.00037016,60]
[393514110,1762743011297,275.93958065,0.00037016,60]
[393514111,1762743014071,511.03204004,0.00037016,60]
[393514112,1762743015749,174.38651017,0.00017467,2]
[393514113,1762743018116,313.8957183,0.00017467,2]
[393514114,1762743020289,557.4787957,0.00017467,2]
[393514115,1762743024349,500.0,0.00037016,60]
[393514116,1762743024383,500.0,0.00037016,60]
[393514117,1762743024602,500.0,0.00037016,60]
[393514118,1762743024635,446.59549671,0.00037016,60]
[393514119,1762743024832,208.35467749,0.00037016,60]
[393514120,1762743028249,200.79079,0.0003,120]
[393514121,1762743030235,507.32189451,0.00037016,60]
[393514128,1762743032154,-300.0,0.00018385,2]
[393514129,1762743032163,-300.0,0.00018385,2]
[393514130,1762743032173,-891.0,0.00018385,2]
[393514131,1762743032183,-449.03062554,0.00018385,2]
[393514132,1762743032194,-750.96937446,0.00018385,2]
[393514133,1762743032204,-55.76770608,0.00018385,2]
[393514135,1762743034473,500.0,0.00037016,60]
[393514136,1762743034705,500.0,0.00037016,60]
[393514137,1762743034935,532.47555854,0.00037016,60]
[393514138,1762743035030,204.58566,0.0003,120]
[393514139,1762743036976,500.0,0.00037016,60]
[393514140,1762743037203,500.0,0.00037016,60]
[393514141,1762743037510,523.85046083,0.00037016,60]
[393514157,1762743037951,-120.51589417,0.00018385,2]
[393514159,1762743037960,-156.34636657,0.00018386,2]
[393514161,1762743037969,-281.42345982,0.00018386,2]
[393514163,1762743037979,-499.80806465,0.00018386,2]
[393514165,1762743037988,-311.54028197,0.00018386,2]
[393514167,1762743037997,-560.77250754,0.00018386,2]
[393514169,1762743038006,-995.93197339,0.00018386,2]
[393514171,1762743038015,-441.44856443,0.00018396,2]
[393514173,1762743038024,-175.92862982,0.00018396,2]
[393514175,1762743038033,-703.71451927,0.00018396,2]
[393514177,1762743038043,-300.0,0.00018753,2]
[393514179,1762743038053,-12.94544697,0.00018753,2]
[393514181,1762743038066,-287.05455303,0.00018753,2]
[393514183,1762743038076,-300.0,0.00018753,2]
[393514185,1762743038086,-300.0,0.00018753,2]
[393514187,1762743038095,-272.29921892,0.00018753,2]
[393514190,1762743038116,-27.70078108,0.00018753,2]
[393514192,1762743038125,-300.0,0.00018753,2]
[393514194,1762743038138,-154.54087071,0.00018753,2]
[393514197,1762743038153,-145.45912929,0.00018753,2]
[393514198,1762743038163,-300.0,0.00018753,2]
[393514201,1762743038173,-300.0,0.00018753,2]
[393514203,1762743038183,-300.0,0.00018753,2]
[393514204,1762743038193,-300.0,0.00018753,2]
[393514206,1762743038203,-300.0,0.00018753,2]
[393514207,1762743038212,-300.0,0.00018753,2]
[393514208,1762743038222,-300.0,0.00018753,2]
[393514209,1762743038232,-300.0,0.00018753,2]
[393514210,1762743038241,-600.0,0.00019127,2]
[393514211,1762743038251,-420.0,0.00020052,2]
[393514212,1762743038261,-267.0,0.0002015,2]
[393514213,1762743038271,-480.098296,0.00020187,2]
[393514214,1762743038281,-177.494381,0.00020316,2]
[393514215,1762743038291,-208.01464829,0.00020385,2]
[393514216,1762743038301,-394.6883238,0.00020479,2]
[393514217,1762743038310,-394.6883238,0.00020479,2]
[393514218,1762743038319,-1227.56666,0.00020596,2]
[393514219,1762743038329,-589.170934,0.00020676,2]
[393514220,1762743038338,-394.6883238,0.000207,2]
[393514221,1762743038348,-500.0,0.00020886,2]
[393514222,1762743038358,-234.63879897,0.00020896,2]
[393514223,1762743038367,-411.96114995,0.00020896,2]
[393514224,1762743038378,-173.47495281,0.00020896,2]
[393514225,1762743038389,-427.31818805,0.00020896,2]
[393514226,1762743038403,-312.25491506,0.00020896,2]
[393514227,1762743038413,-554.56472915,0.00020896,2]
[393514228,1762743038423,-500.0,0.00020896,2]
[393514229,1762743038432,-500.0,0.00020896,2]
[393514230,1762743038443,-500.0,0.00020896,2]
[393514231,1762743038453,-500.0,0.00020896,2]
[393514232,1762743038462,-500.0,0.00020896,2]
[393514233,1762743038473,-500.0,0.00020896,2]
[393514234,1762743038483,-500.0,0.00020896,2]
[393514235,1762743038493,-500.0,0.00020896,2]
[393514236,1762743038502,-500.0,0.00020896,2]
[393514237,1762743038512,-500.0,0.00020896,2]
[393514238,1762743038521,-500.0,0.00020896,2]
[393514239,1762743038531,-155.27,0.00020897,2]
[393514240,1762743038541,-500.0,0.00020904,2]
[393514241,1762743038551,-152.11526086,0.00020904,2]
[393514242,1762743038561,-371.94110311,0.00020904,2]
[393514243,1762743038571,-528.29830282,0.00020904,2]
[393514244,1762743038580,-238.83184551,0.00020904,2]
[393514245,1762743038589,-788.35529487,0.00020905,2]
[393514379,1762743041419,1666.97,0.00037016,60]
[393514380,1762743041663,1666.97,0.00037016,60]
[393514381,1762743041893,1666.97,0.00037016,60]
[393514382,1762743042135,1666.97,0.00037016,60]
[393514383,1762743042365,1666.97,0.00037016,60]
[393514384,1762743042604,1666.97,0.00037016,60]
[393514403,1762743042850,1666.97,0.00037016,60]
[393514410,1762743043080,1666.97,0.00037016,60]
[393514411,1762743043217,-907.68862963,0.00020905,2]
[393514412,1762743043226,-6414.733208,0.00020905,2]
[393514414,1762743043236,-458.0074935,0.00020905,2]
[393514415,1762743043245,-489.81163147,0.00020956,7]
[393514416,1762743043255,-500.0,0.00020972,2]
[393514417,1762743043265,-720.0,0.0002104,2]
[393514418,1762743043275,-231.0,0.0002113,2]
[393514419,1762743043285,-353.62612242,0.00021144,7]
[393514420,1762743043296,-231.0,0.0002121,2]
[393514421,1762743043305,-80.19116542,0.00021276,2]
[393514422,1762743043354,1666.97,0.00037016,60]
[393514423,1762743043541,1666.97,0.00037016,60]
[393514424,1762743043784,1666.97,0.00037016,60]
[393514425,1762743044021,1666.97,0.00037016,60]
[393514426,1762743044252,1666.97,0.00037016,60]
[393514427,1762743044490,1666.97,0.00037016,60]
[393514428,1762743044724,1666.97,0.00037016,60]
[393514429,1762743044964,1666.97,0.00037016,120]
[393514430,1762743045273,1666.97,0.00037016,120]
[393514431,1762743045692,1666.97,0.00037016,120]
[393514432,1762743045740,1666.97,0.00037016,120]
[393514434,1762743045976,1666.97,0.00037016,120]
[393514436,1762743046211,1666.97,0.00037016,120]
[393514437,1762743046446,1666.97,0.00037016,120]
[393514439,1762743046516,-2009.26418855,0.00021276,2]
[393514440,1762743046526,-231.0,0.00021376,2]
[393514441,1762743046535,-160.0,0.000214,2]
[393514442,1762743046544,-231.0,0.00021437,2]
[393514443,1762743046554,-394.6883238,0.00021438,2]
[393514444,1762743046563,-394.6883238,0.00021438,2]
[393514445,1762743046572,-394.6883238,0.00021438,2]
[393514446,1762743046582,-394.6883238,0.00021438,2]
[393514447,1762743046591,-394.6883238,0.00021438,2]
[393514448,1762743046600,-394.6883238,0.00021438,2]
[393514449,1762743046610,-394.6883238,0.00021438,2]
[393514450,1762743046620,-784.5373771,0.00021438,2]
[393514451,1762743046630,-144.16166676,0.00021438,2]
[393514452,1762743046732,1666.97,0.00037016,120]
[393514453,1762743046776,-315.6,0.00021438,2]
[393514454,1762743046787,-40.23833324,0.00021438,2]
[393514455,1762743046797,-500.0,0.00021438,2]
[393514456,1762743046810,-151.0,0.00021438,2]
[393514457,1762743046820,-151.0,0.00021438,2]
[393514458,1762743046829,-500.0,0.00021493,2]
[393514459,1762743046838,-500.0,0.00021493,2]
[393514460,1762743046848,-500.0,0.00021548,2]
[393514461,1762743046858,-500.0,0.00021548,2]
[393514462,1762743046867,-231.0,0.00021589,2]
[393514463,1762743046876,-151.0,0.000216,3]
[393514464,1762743046886,-500.0,0.00021602,2]
[393514465,1762743046895,-500.0,0.00021602,2]
[393514466,1762743046904,-500.0,0.00021657,2]
[393514467,1762743046914,-500.0,0.00021657,2]
[393514468,1762743046923,-238.29658914,0.00021725,2]
[393514469,1762743046932,-341.0,0.00021732,2]
[393514470,1762743046941,-1008.62,0.000218,2]
[393514471,1762743046951,-151.0,0.000218,3]
[393514472,1762743046959,-341.0,0.00021804,2]
[393514473,1762743046969,-341.0,0.00021853,2]
[393514474,1762743046978,-587.0,0.0002187,2]
[393514475,1762743046986,-614.167695,0.00021915,2]
[393514476,1762743046995,-260.0,0.00021948,2]
[393514477,1762743047008,-500.0,0.00021997,2]
[393514478,1762743047018,-500.0,0.00021999,2]
[393514479,1762743047027,-151.0,0.00022,7]
[393514480,1762743047036,-5688.56180262,0.00022,5]
[393514481,1762743047077,1667.18481618,0.00037016,120]
[393514482,1762743077324,264.78512559,0.00037016,60]
[393514483,1762743080407,528.44888011,0.00037016,60]
[393514484,1762743082357,500.0,0.00037016,60]
[393514485,1762743082588,500.0,0.00037016,60]
[393514486,1762743082818,567.78923164,0.00037016,60]
[393514487,1762743105098,223.80086556,0.00032876,120]
[393514488,1762743136010,500.0,0.00037016,60]
[393514489,1762743136276,500.0,0.00037016,60]
[393514490,1762743136527,543.03040797,0.00037016,60]
[393514491,1762743138334,500.0,0.00037016,60]
[393514492,1762743138668,500.0,0.00037016,60]
[393514493,1762743138820,524.75665533,0.00037016,60]
[393514494,1762743143921,174.7169017,0.000328,120]
[393514495,1762743145670,193.11847908,0.000328,120]
[393514496,1762743150270,500.0,0.00037015,60]
[393514497,1762743150572,500.0,0.00037015,60]
[393514498,1762743150751,577.523481,0.00037015,60]
[393514499,1762743152331,192.21706178,0.000328,120]
[393514500,1762743154757,207.29762898,0.000328,120]
[393514501,1762743166949,500.0,0.00037015,60]
[393514502,1762743167199,500.0,0.00037015,60]
[393514503,1762743167433,529.11907677,0.00037015,60]
[393514504,1762743168096,500.0,0.00037015,60]
[393514505,1762743168333,500.0,0.00037015,60]
[393514506,1762743168551,500.0,0.00037015,60]
[393514507,1762743168797,327.14162815,0.00037015,60]
[393514508,1762743179226,500.0,0.00037015,60]
[393514509,1762743179470,500.0,0.00037015,60]
[393514510,1762743179707,476.99703051,0.00037015,60]
[393514511,1762743187189,500.0,0.00037015,60]
[393514512,1762743187422,500.0,0.00037015,60]
[393514513,1762743187665,500.0,0.00037015,60]
[393514514,1762743187914,499.5023536,0.00037015,60]
[393514515,1762743194002,374.19511608,0.00037015,60]
[393514516,1762743211391,472.52213551,0.000328,120]
[393514517,1762743212186,194.87936567,0.000328,120]
[393514518,1762743218954,500.0,0.00037015,60]
[393514519,1762743219219,500.0,0.00037015,60]
[393514520,1762743219471,500.0,0.00037015,60]
[393514521,1762743219735,500.0,0.00037015,60]
[393514522,1762743219988,500.0,0.00037015,60]
[393514523,1762743220241,612.68618417,0.00037015,60]
[393514524,1762743225476,500.0,0.00037015,60]
[393514525,1762743225719,500.0,0.00037015,60]
[393514526,1762743225948,500.0,0.00037015,60]
[393514527,1762743226181,500.0,0.00037015,60]
[393514528,1762743226411,500.0,0.00037015,60]
[393514529,1762743226651,500.0,0.00037015,60]
[393514530,1762743226888,500.0,0.00037015,60]
[393514531,1762743227143,500.0,0.00037015,60]
[393514532,1762743227376,500.0,0.00037015,60]
[393514533,1762743227623,500.0,0.00037015,60]
[393514534,1762743227863,500.0,0.00037015,60]
[393514535,1762743228100,500.0,0.00037015,60]
[393514536,1762743228332,500.0,0.00037015,60]
[393514537,1762743228606,500.0,0.00037015,60]
[393514538,1762743228939,500.0,0.00037015,60]
[393514539,1762743229185,500.0,0.00037015,120]
[393514540,1762743229516,500.0,0.00037015,120]
[393514541,1762743229759,500.0,0.00037015,120]
[393514542,1762743230017,500.0,0.00037015,120]
[393514543,1762743230262,500.0,0.00037015,120]
[393514544,1762743230577,525.38652878,0.00037015,120]
[393514546,1762743257416,564.0,0.00018,2]
[393514547,1762743276994,219.80292398,0.000328,120]
[393514548,1762743345037,391.0,0.00032042,120]
[393514549,1762743409943,906.4778728,0.00032877,120]
[393514550,1762743459358,174.71690171,0.000328,120]
[393514551,1762743515329,533.14383854,0.00032876,120]
[393514552,1762743527794,194.87936567,0.000328,120]
[393514553,1762743529011,378.01770841,0.000328,120]
[393514554,1762743592558,175.84233918,0.000328,120]
[393514555,1762743633949,235.0,0.00032419,120]
[393514556,1762743840823,194.87936566,0.000328,120]
[393514557,1762743844506,302.41416673,0.000328,120]
[393514559,1762743903118,1288.05977315,0.00018,2]
[393514560,1762743907107,175.84233918,0.000328,120]
[393514561,1762743931884,176.0,0.00032721,120]
[393514562,1762743961820,168.5729625,0.00030137,120]
[393514563,1762743981969,1656.89,0.00032877,120]
[393514564,1762744059099,906.4778728,0.00032877,120]
[393514565,1762744071344,2141.387,0.0003287,120]
[393514566,1762744158715,241.93133338,0.000328,120]
[393514567,1762744205766,423.0,0.00032876,120]
[393514568,1762744221382,175.84233918,0.000328,120]
[393514636,1762744238192,-161.0839225,0.00020681,2]
[393514638,1762744238202,-1013.0,0.00020681,2]
[393514639,1762744238212,-172.237449,0.00020792,2]
[393514640,1762744238222,-300.0,0.00020903,2]
[393514641,1762744238231,-498.0,0.00020903,2]
[393514642,1762744238242,-156.68731904,0.00020904,2]
[393514643,1762744238252,-500.0,0.00020904,2]
[393514644,1762744238262,-500.0,0.00020904,2]
[393514645,1762744238272,-500.0,0.00020904,2]
[393514646,1762744238281,-500.0,0.00020904,2]
[393514647,1762744238291,-5604.10935955,0.00020905,2]
[393514648,1762744238414,-2126.44856135,0.00020905,2]
[393514649,1762744238425,-505.1461733,0.00021,2]
[393514650,1762744238436,-500.0,0.00021,2]
[393514651,1762744238445,-859.834773,0.00021398,2]
[393514652,1762744238456,-274.33369386,0.00021437,2]
[393514653,1762744238466,-410.10876287,0.00021437,2]
[393514654,1762744238476,-1272.0329434,0.00021468,2]
[393514655,1762744238486,-343.5056201,0.00021468,2]
[393514656,1762744238496,-968.11230962,0.0002181,2]
[393514696,1762744240440,-1053.83585022,0.0002181,2]
[393514698,1762744240449,-225.0,0.00021869,2]
[393514700,1762744240459,-348.637,0.00021869,2]
[393514702,1762744240468,-696.7513806,0.0002191,2]
[393515021,1762744243521,-6893.20715217,0.0002191,2]